bitfinex-derivatives/quotes_SOLF0:USTF0_20241216
["timestamp","ask_amount","ask_price","bid_price","bid_amount"]
[1734321396920,1.5077,221.35,221.25,11.91610819]
[1734321397123,1.5077,221.35,221.29,2.2602]
[1734321397326,246.73431031,221.38,221.29,2.2602]
[1734321397927,246.73431031,221.38,221.3,2.2601]
[1734321398129,1.4826,221.38,221.3,2.2601]
[1734321398531,1.4826,221.38,221.3,4.5401]
[1734321399033,2.28,221.4,221.3,4.5401]
[1734321399425,2.2595,221.36,221.3,4.5401]
[1734321400729,2.28,221.4,221.26,4.4819]
[1734321400929,11.91610819,221.4,221.26,3.7633]
[1734321401433,11.91610819,221.4,221.26,1.4833]
[1734321401834,2.26,221.32,221.26,1.4833]
[1734321402131,11.91610819,221.4,221.26,1.4833]
[1734321403029,11.91610819,221.4,221.25,11.91610819]
[1734321403836,9.63610819,221.37,221.22,11.89690819]
[1734321404036,9.63610819,221.37,221.22,14.17690819]
[1734321404232,1.5459,221.36,221.22,14.17690819]
[1734321404433,2.2604,221.28,221.22,14.17690819]
[1734321404734,2.2604,221.28,221.23,5.00687489]
[1734321405035,2.2604,221.28,221.22,14.17690819]
[1734321405226,2.2605,221.27,221.23,5.00687926]
[1734321405537,2.2605,221.27,221.22,11.91610819]
[1734321405733,2.2605,221.27,221.23,5.00656632]
[1734321405935,2.2605,221.27,221.22,11.91610819]
[1734321406237,2.2605,221.27,221.23,5.00656055]
[1734321406538,2.2605,221.27,221.22,11.91610819]
[1734321406731,2.2605,221.27,221.23,5.00978592]
[1734321406938,2.2605,221.26,221.22,9.63610819]
[1734321407439,2.2605,221.26,221.23,5.00981298]
[1734321407637,2.2605,221.26,221.22,9.63610819]
[1734321407839,2.2605,221.26,221.23,5.01186067]
[1734321408136,2.2605,221.26,221.22,9.63610819]
[1734321408335,2.2605,221.26,221.23,5.01330669]
[1734321408532,2.2605,221.26,221.24,5.01330669]
[1734321408731,2.2605,221.26,221.22,9.63610819]
[1734321408934,2.2605,221.26,221.23,5.01326305]
[1734321409141,2.28,221.35,221.24,5.01326305]
[1734321409439,2.28,221.35,221.22,11.89700819]
[1734321409639,2.28,221.35,221.23,5.01352185]
[1734321409934,2.28,221.35,221.24,5.01352185]
[1734321410142,2.2603,221.29,221.23,2.2608]
[1734321410337,1.5459,221.36,221.25,9.63610819]
[1734321410535,3.8259,221.36,221.26,5.01379402]
[1734321410732,2.26,221.31,221.26,4.5405]
[1734321411534,2.2601,221.3,221.27,5.01281949]
[1734321411742,2.2601,221.3,221.26,2.28]
[1734321412540,2.2601,221.3,221.23,9.63610819]
[1734321412842,2.2601,221.3,221.24,7.2924565]
[1734321413042,2.2601,221.3,221.25,5.0124565]
[1734321413241,2.2601,221.3,221.24,4.5407]
[1734321414045,2.2601,221.3,221.25,5.01227866]
[1734321414235,2.2601,221.3,221.24,4.5407]
[1734321414440,2.2601,221.3,221.25,5.01215534]
[1734321414739,2.2601,221.3,221.24,4.5407]
[1734321414941,2.2601,221.3,221.25,5.01214473]
[1734321415138,2.2601,221.3,221.24,4.5407]
[1734321415643,2.2601,221.3,221.24,2.2607]
[1734321415843,2.2601,221.3,221.25,2.28]
[1734321416144,2.2601,221.3,221.28,6.16373072]
[1734321416645,7.70963072,221.36,221.28,6.16373072]
[1734321416851,2.2602,221.29,221.28,6.16373072]
[1734321418041,2.2604,221.28,221.26,6.16373072]
[1734321419443,2.2604,221.28,221.23,2.2608]
[1734321419641,1.5459,221.36,221.22,6.16373072]
[1734321419642,6.16373072,221.3,221.22,6.16373072]
[1734321419846,6.16373072,221.3,221.2,1.4822]
[1734321420140,2.2609,221.22,221.21,6.16373072]
[1734321420347,6.16373072,221.3,221.21,6.16373072]
[1734321420844,6.16373072,221.28,221.21,6.16373072]
[1734321421250,7.64713072,221.3,221.21,6.16373072]
[1734321421941,2.2609,221.23,221.21,6.16373072]
[1734321422946,6.16373072,221.28,221.19,6.16373072]
[1734321424439,2.2611,221.21,221.19,6.16373072]
[1734321425244,2.2611,221.2,221.19,6.16373072]
[1734321425741,2.28,221.21,221.13,6.16373072]
[1734321426747,2.2617,221.15,221.13,6.16373072]
[1734321428145,2.28,221.21,221.13,6.16373072]
[1734321428146,2.2618,221.14,221.13,6.16373072]
[1734321430058,2.2618,221.14,221.11,6.16373072]
[1734321430251,6.16373072,221.2,221.11,6.16373072]
[1734321430849,2.2614,221.18,221.11,6.16373072]
[1734321431045,6.16373072,221.2,221.11,6.16373072]
[1734321431453,6.16373072,221.2,220.96,47.02]
[1734321431653,6.16373072,221.2,221.11,6.16373072]
[1734321432260,2.2619,221.13,221.11,6.16373072]
[1734321433051,6.16373072,221.2,221.11,6.16373072]
[1734321433253,2.262,221.12,221.11,6.16373072]
[1734321436165,1.5602,221.25,221.11,6.16373072]
[1734321436354,6.16373072,221.23,221.15,6.16373072]
[1734321437461,2.2615,221.17,221.15,6.16373072]
[1734321438464,2.28,221.24,221.12,6.16373072]
[1734321438465,2.2619,221.13,221.12,6.16373072]
[1734321444566,6.16373072,221.21,221.12,6.16373072]
[1734321444770,6.16373072,221.21,221.14,6.16373072]
[1734321445167,2.2613,221.19,221.14,6.16373072]
[1734321445367,6.16373072,221.21,221.14,6.16373072]
[1734321445669,2.28,221.24,221.14,6.16373072]
[1734321445858,6.16373072,221.22,221.14,6.16373072]
[1734321446063,1.5602,221.25,221.16,6.16373072]
[1734321446269,6.16373072,221.26,221.18,6.16373072]
[1734321446970,2.261,221.22,221.18,6.16373072]
[1734321447769,6.16373072,221.26,221.18,6.16373072]
[1734321448271,8.44373072,221.28,221.2,6.16373072]
[1734321448669,2.261,221.22,221.2,6.16373072]
[1734321449874,2.261,221.21,221.2,6.16373072]
[1734321450176,2.261,221.21,221.18,6.16373072]
[1734321451668,2.261,221.21,221.19,5.34222285]
[1734321456970,2.261,221.22,221.19,5.34222285]
[1734321458171,2.261,221.22,221.2,6.16373072]
[1734321458374,6.16373072,221.27,221.2,6.16373072]
[1734321458570,2.2607,221.25,221.19,5.34222285]
[1734321458772,6.16373072,221.27,221.19,5.34222285]
[1734321459972,2.261,221.22,221.19,5.34222285]
[1734321462685,6.16373072,221.23,220.97,15.06074582]
[1734321462884,6.16373072,221.23,221.14,6.16373072]
[1734321463085,6.16373072,221.23,221.15,5.04107973]
[1734321463386,6.16373072,221.23,221.16,5.04107973]
[1734321463586,2.2614,221.17,221.14,6.16373072]
[1734321463879,2.2614,221.17,221.15,5.04334041]
[1734321464085,2.2614,221.17,221.16,5.04334041]
[1734321465578,2.2614,221.17,221.14,6.16373072]
[1734321465782,2.2614,221.17,221.16,5.04576029]
[1734321467887,2.2614,221.17,221.16,11.20949101]
[1734321468490,2.2614,221.17,221.16,5.04576029]
[1734321469388,6.16373072,221.19,221.09,1.5173]
[1734321469593,6.16373072,221.17,221.1,5.04851764]
[1734321469795,6.16373072,221.17,221.11,5.04851764]
[1734321469990,6.16373072,221.17,221.12,5.04851764]
[1734321470190,6.16373072,221.17,221.09,6.16373072]
[1734321470395,6.16373072,221.17,221.1,5.04846908]
[1734321470592,2.2619,221.13,221.11,5.04846908]
[1734321470891,2.2619,221.13,221.09,6.16373072]
[1734321471092,2.2619,221.13,221.1,5.04850395]
[1734321471291,2.2619,221.13,221.09,6.16373072]
[1734321471292,2.2619,221.13,221.11,5.04850395]
[1734321471491,2.2619,221.13,221.09,6.16373072]
[1734321471690,2.2619,221.13,221.1,5.04821262]
[1734321472194,2.2619,221.13,221.09,6.16373072]
[1734321472497,2.2619,221.13,221.1,5.04820968]
[1734321472797,2.2619,221.13,221.11,5.04820968]
[1734321473096,6.16373072,221.18,221.09,6.16373072]
[1734321473297,2.262,221.12,221.1,5.04785028]
[1734321473497,2.262,221.12,221.11,5.04785028]
[1734321475598,2.262,221.12,221.11,5.04738809]
[1734321476192,6.16373072,221.18,221.11,5.04738809]
[1734321476398,6.16373072,221.18,221.11,6.16373072]
[1734321476594,1.5226,221.21,221.13,6.16373072]
[1734321476801,1.5226,221.21,221.15,6.16373072]
[1734321477000,2.28,221.24,221.17,6.16373072]
[1734321477497,2.261,221.22,221.19,6.16373072]
[1734321477999,8.44373072,221.26,221.19,6.16373072]
[1734321478695,2.2611,221.21,221.19,6.16373072]
[1734321480103,2.2611,221.21,221.17,6.16373072]
[1734321480498,6.16373072,221.22,221.14,2.2617]
[1734321480698,6.16373072,221.2,221.15,5.04752039]
[1734321480898,6.16373072,221.2,221.13,6.16373072]
[1734321481102,2.2613,221.19,221.14,5.04771112]
[1734321481404,6.16373072,221.2,221.13,6.16373072]
[1734321481706,2.2617,221.15,221.14,5.04790644]
[1734321481899,2.2617,221.15,221.11,6.16373072]
[1734321482204,2.2617,221.15,221.12,5.04830334]
[1734321482498,2.2615,221.17,221.13,11.21203406]
[1734321482703,8.44373072,221.21,221.14,5.04830334]
[1734321482903,8.44373072,221.21,221.13,6.16373072]
[1734321483100,8.44373072,221.21,221.14,5.04787686]
[1734321483309,8.44373072,221.21,221.13,6.16373072]
[1734321483501,2.28,221.21,221.14,5.04770028]
[1734321483698,6.16373072,221.19,221.15,5.04770028]
[1734321484002,2.2616,221.16,221.11,6.16373072]
[1734321484309,2.2616,221.16,221.13,6.16373072]
[1734321484606,2.2616,221.16,221.14,5.04801776]
[1734321484801,2.2616,221.16,221.13,6.16373072]
[1734321485003,2.2616,221.16,221.14,5.04805546]
[1734321485305,2.2616,221.16,221.13,6.16373072]
[1734321485505,2.2616,221.16,221.14,5.04824312]
[1734321485704,2.2616,221.16,221.13,6.16373072]
[1734321485904,2.2616,221.16,221.14,5.04825582]
[1734321486202,2.2616,221.16,221.15,5.04825582]
[1734321486508,2.28,221.22,221.15,11.21198654]
[1734321486705,2.28,221.22,221.16,5.04825582]
[1734321486906,2.28,221.22,221.17,5.04825582]
[1734321487105,2.28,221.22,221.15,6.16373072]
[1734321487302,2.28,221.22,221.16,5.04812568]
[1734321487608,2.2611,221.2,221.17,5.04812568]
[1734321487804,2.2611,221.2,221.18,5.04812568]
[1734321488007,2.2611,221.2,221.16,2.2615]
[1734321488204,2.2611,221.2,221.17,5.04817425]
[1734321488502,2.2611,221.2,221.18,5.04817425]
[1734321488705,2.2611,221.2,221.16,2.2615]
[1734321488905,2.2611,221.2,221.17,11.21216096]
[1734321489208,2.2611,221.2,221.18,5.04843024]
[1734321489507,2.2611,221.2,221.17,6.16373072]
[1734321489707,2.2611,221.2,221.18,5.04870888]
[1734321490007,2.2611,221.2,221.17,6.16373072]
[1734321490208,2.2611,221.2,221.18,5.04871482]
[1734321490408,2.2611,221.2,221.17,6.16373072]
[1734321490606,2.2611,221.2,221.18,5.04878568]
[1734321490804,2.2611,221.2,221.17,6.16373072]
[1734321491109,2.28,221.26,221.18,5.04888103]
[1734321491302,2.261,221.22,221.19,11.21251112]
[1734321491502,2.28,221.32,221.21,6.16373072]
[1734321491701,39.37574967,221.33,221.25,6.16373072]
[1734321491702,45.53948039,221.33,221.25,6.16373072]
[1734321491906,47.81948039,221.33,221.25,6.16373072]
[1734321492099,6.16373072,221.31,221.23,6.16373072]
[1734321492307,2.2604,221.28,221.24,5.04759339]
[1734321492507,6.16373072,221.31,221.23,6.16373072]
[1734321492811,41.65574967,221.33,221.21,8.44373072]
[1734321492812,2.2606,221.25,221.21,8.44373072]
[1734321493110,6.16373072,221.29,221.21,8.44373072]
[1734321493307,6.16373072,221.29,221.21,6.16373072]
[1734321494905,6.16373072,221.29,221.19,8.42493072]
[1734321495105,6.16373072,221.29,221.2,5.04540716]
[1734321495304,2.28,221.28,221.21,5.04540716]
[1734321495506,6.16373072,221.27,221.19,6.16373072]
[1734321495714,6.16373072,221.27,221.2,5.04508326]
[1734321495913,6.16373072,221.27,221.19,6.16373072]
[1734321496409,2.2609,221.23,221.19,6.16373072]
[1734321498413,2.2606,221.25,221.2,5.04435027]
[1734321498610,6.16373072,221.27,221.19,6.16373072]
[1734321498913,6.16373072,221.27,221.2,5.04435027]
[1734321499108,2.2609,221.23,221.19,6.16373072]
[1734321500013,6.16373072,221.27,221.19,6.16373072]
[1734321500014,2.2609,221.22,221.19,6.16373072]
[1734321500810,2.2608,221.24,221.21,6.16373072]
[1734321501911,8.44373072,221.32,221.23,6.16373072]
[1734321502310,2.2604,221.27,221.24,5.04272811]
[1734321502515,2.2604,221.27,221.23,6.16373072]
[1734321503307,2.2603,221.29,221.25,6.16373072]
[1734321503912,1.424,221.34,221.27,6.16373072]
[1734321504117,2.2601,221.31,221.27,6.16373072]
[1734321504914,2.2598,221.33,221.27,6.16373072]
[1734321505417,2.2598,221.33,221.29,6.16373072]
[1734321507420,2.2599,221.32,221.29,6.16373072]
[1734321509720,2.2598,221.33,221.29,6.16373072]
[1734321511027,1.5167,221.42,221.32,2.2599]
[1734321511223,7.68043072,221.42,221.35,6.16373072]
[1734321512522,2.2593,221.38,221.35,6.16373072]
[1734321513425,7.64953072,221.46,221.32,2.28]
[1734321513625,7.64953072,221.46,221.39,6.16373072]
[1734321514130,1.4858,221.46,221.39,6.16373072]
[1734321514526,2.2588,221.43,221.39,6.16373072]
[1734321514724,6.16373072,221.45,221.37,8.44373072]
[1734321515130,2.2591,221.41,221.37,8.44373072]
[1734321515329,2.28,221.5,221.4,6.16373072]
[1734321515526,1.4872,221.56,221.4,6.16373072]
[1734321515828,6.16373072,221.5,221.42,6.16373072]
[1734321516825,2.28,221.53,221.44,6.16373072]
[1734321517125,2.2583,221.49,221.44,6.16373072]
[1734321517330,6.16373072,221.51,221.44,6.16373072]
[1734321518329,2.2584,221.48,221.44,6.16373072]
[1734321521430,2.2584,221.48,221.46,6.16373072]
[1734321521823,5.45302963,221.55,221.46,6.16373072]
[1734321521824,2.28,221.55,221.46,6.16373072]
[1734321522027,6.16373072,221.55,221.46,6.16373072]
[1734321522329,8.44373072,221.55,221.48,6.16373072]
[1734321522536,2.258,221.51,221.48,6.16373072]
[1734321523435,2.28,221.59,221.5,6.16373072]
[1734321523632,8.90052072,221.6,221.52,6.16373072]
[1734321524024,2.2576,221.55,221.52,6.16373072]
[1734321524430,8.90052072,221.6,221.52,6.16373072]
[1734321524626,6.16373072,221.56,221.48,6.16373072]
[1734321524827,2.73679,221.6,221.47,2.28]
[1734321524828,6.16373072,221.54,221.47,2.28]
[1734321525132,2.258,221.51,221.48,6.16373072]
[1734321526131,2.2581,221.5,221.48,6.16373072]
[1734321526833,6.16373072,221.54,221.45,6.16373072]
[1734321527136,6.16373072,221.52,221.45,6.16373072]
[1734321527330,2.2583,221.48,221.45,6.16373072]
[1734321527535,6.16373072,221.52,221.45,6.16373072]
[1734321528035,6.16373072,221.5,221.42,6.16373072]
[1734321528932,2.2587,221.44,221.39,2.2592]
[1734321529234,2.2587,221.44,221.41,6.16373072]
[1734321533132,6.16373072,221.5,221.41,6.16373072]
[1734321533329,2.2588,221.43,221.41,6.16373072]
[1734321534133,2.2589,221.42,221.38,3.7549]
[1734321534329,2.2589,221.42,221.41,6.16373072]
[1734321538239,2.259,221.41,221.36,7.68704058]
[1734321538433,2.259,221.41,221.38,6.16373072]
[1734321539637,2.28,221.46,221.4,6.16373072]
[1734321539638,2.2588,221.44,221.4,6.16373072]
[1734321539834,2.28,221.46,221.42,6.16373072]
[1734321541138,2.2587,221.44,221.42,6.16373072]
[1734321542938,6.16373072,221.5,221.42,6.16373072]
[1734321543140,2.2584,221.48,221.44,6.16373072]
[1734321543541,2.28,221.51,221.44,6.16373072]
[1734321544741,2.2585,221.46,221.44,6.16373072]
[1734321544949,6.16373072,221.5,221.39,2.28]
[1734321545243,6.16373072,221.46,221.39,6.16373072]
[1734321545443,2.28,221.46,221.4,6.16373072]
[1734321546039,2.2588,221.43,221.4,6.16373072]
[1734321546733,2.2589,221.42,221.4,6.16373072]
[1734321548538,2.259,221.41,221.4,6.16373072]
[1734321553551,8.44373072,221.46,221.36,5.42754058]
[1734321553848,2.2592,221.4,221.37,11.19974848]
[1734321554048,2.2592,221.4,221.37,6.16373072]
[1734321554642,8.44373072,221.46,221.37,6.16373072]
[1734321554843,2.2592,221.39,221.37,6.16373072]
[1734321555647,2.2591,221.4,221.37,6.16373072]
[1734321555843,2.2591,221.4,221.39,6.16373072]
[1734321559246,8.44373072,221.46,221.37,6.16373072]
[1734321559554,2.2593,221.38,221.37,6.16373072]
[1734321560455,2.2592,221.39,221.37,6.16373072]
[1734321560948,8.44373072,221.46,221.37,6.16373072]
[1734321561153,2.2593,221.38,221.37,6.16373072]
[1734321561749,2.2593,221.38,221.37,11.20785734]
[1734321562558,2.2593,221.38,221.37,6.16373072]
[1734321563158,8.44373072,221.46,221.37,6.16373072]
[1734321563459,2.2592,221.39,221.37,6.16373072]
[1734321563756,8.44373072,221.46,221.37,6.16373072]
[1734321563948,2.2593,221.38,221.37,6.16373072]
[1734321564151,2.2593,221.38,221.37,11.20703099]
[1734321564352,6.16373072,221.44,221.35,6.16373072]
[1734321564558,2.2595,221.36,221.35,6.16373072]
[1734321564751,2.2595,221.36,221.35,11.20710981]
[1734321565853,2.2595,221.36,221.35,5.04337909]
[1734321566059,2.2595,221.36,221.35,11.20710981]
[1734321566954,2.2595,221.36,221.35,5.04337909]
[1734321567158,2.2598,221.33,221.28,6.16373072]
[1734321567354,2.2598,221.33,221.29,5.04224952]
[1734321567561,2.2598,221.33,221.3,11.20598024]
[1734321567762,2.2598,221.33,221.3,6.16373072]
[1734321567963,2.2598,221.33,221.31,5.04224929]
[1734321568263,2.26,221.36,221.3,6.16373072]
[1734321568463,2.2597,221.34,221.31,5.04114394]
[1734321568663,2.2597,221.34,221.3,6.16373072]
[1734321568865,2.2597,221.34,221.31,5.0421615]
[1734321569065,2.2597,221.34,221.3,6.16373072]
[1734321569261,2.2597,221.34,221.29,2.2602]
[1734321569262,2.2599,221.32,221.31,5.04215688]
[1734321569459,6.16373072,221.35,221.27,6.16373072]
[1734321569658,6.16373072,221.35,221.28,5.04228771]
[1734321569963,2.2598,221.34,221.29,5.04228771]
[1734321570260,2.26,221.37,221.33,6.16373072]
[1734321570464,6.16373072,221.41,221.33,6.16373072]
[1734321570666,2.26,221.4,221.35,6.16373072]
[1734321571261,6.16373072,221.41,221.35,6.16373072]
[1734321571461,2.26,221.4,221.35,6.16373072]
[1734321571663,2.2594,221.37,221.35,6.16373072]
[1734321571866,2.2594,221.37,221.33,6.16373072]
[1734321572066,2.2594,221.37,221.34,5.04220668]
[1734321572266,2.2594,221.37,221.33,6.16373072]
[1734321572466,2.2594,221.37,221.34,5.04214138]
[1734321572668,2.2594,221.37,221.33,6.16373072]
[1734321572871,2.26,221.4,221.34,5.04298942]
[1734321572872,2.2596,221.35,221.34,5.04298942]
[1734321573066,6.16373072,221.37,221.29,7.60893072]
[1734321573273,6.16373072,221.37,221.3,5.04347391]
[1734321573465,2.2599,221.33,221.31,5.04347391]
[1734321573672,2.2599,221.33,221.29,6.16373072]
[1734321573872,2.26,221.34,221.3,5.0428164]
[1734321574165,2.26,221.34,221.29,6.16373072]
[1734321575070,2.26,221.31,221.29,6.16373072]
[1734321575864,2.26,221.34,221.29,6.16373072]
[1734321576172,2.26,221.34,221.31,6.16373072]
[1734321576871,1.5734,221.44,221.33,6.16373072]
[1734321577067,6.16373072,221.42,221.33,6.16373072]
[1734321578368,2.2595,221.36,221.33,6.16373072]
[1734321578571,6.16373072,221.4,221.33,6.16373072]
[1734321578773,2.26,221.39,221.33,6.16373072]
[1734321579371,6.16373072,221.4,221.33,6.16373072]
[1734321579372,2.26,221.38,221.33,6.16373072]
[1734321579965,2.2597,221.35,221.33,6.16373072]
[1734321581970,2.26,221.38,221.31,6.16373072]
[1734321582376,2.26,221.38,221.32,5.04024391]
[1734321582577,2.2597,221.34,221.31,6.16373072]
[1734321582773,2.2597,221.34,221.32,5.04024389]
[1734321582974,2.2597,221.34,221.31,6.16373072]
[1734321583175,2.2597,221.34,221.32,5.04029278]
[1734321583369,2.26,221.38,221.31,6.16373072]
[1734321583575,2.2598,221.33,221.32,5.04019219]
[1734321583875,2.26,221.33,221.27,6.16373072]
[1734321584068,2.2603,221.29,221.27,6.16373072]
[1734321585780,2.26,221.32,221.28,5.03899873]
[1734321586075,2.26,221.33,221.29,11.20272945]
[1734321586280,2.26,221.33,221.29,6.16373072]
[1734321586975,2.26,221.32,221.29,6.16373072]
[1734321587475,2.26,221.33,221.27,6.16373072]
[1734321588075,2.2602,221.29,221.28,5.0388447]
[1734321588273,2.2602,221.29,221.27,6.16373072]
[1734321589282,2.26,221.33,221.24,5.34687073]
[1734321589581,2.2603,221.28,221.26,6.16373072]
[1734321589783,2.2603,221.28,221.27,5.03945947]
[1734321591182,2.2603,221.28,221.27,5.03960903]
[1734321592085,2.26,221.33,221.27,5.03960903]
[1734321592286,2.26,221.33,221.28,6.16373072]
[1734321593382,6.16373072,221.39,221.29,5.04008954]
[1734321593578,2.26,221.38,221.32,6.16373072]
[1734321594581,2.2596,221.36,221.32,6.16373072]
[1734321594983,2.2596,221.36,221.33,5.04001038]
[1734321595192,2.2596,221.36,221.32,6.16373072]
[1734321595389,2.2596,221.36,221.33,5.04055483]
[1734321595589,2.2596,221.36,221.32,6.16373072]
[1734321595789,2.2596,221.36,221.33,5.04055484]
[1734321595994,2.2596,221.36,221.32,6.16373072]
[1734321596190,2.2596,221.36,221.33,5.04055724]
[1734321596391,2.2596,221.36,221.32,6.16373072]
[1734321596593,2.2596,221.36,221.33,5.04129392]
[1734321596796,2.2596,221.36,221.32,6.16373072]
[1734321596993,2.2596,221.36,221.33,5.04129748]
[1734321597189,2.2596,221.36,221.32,6.16373072]
[1734321597496,2.2596,221.36,221.33,5.04129731]
[1734321597791,2.2596,221.36,221.32,6.16373072]
[1734321597996,2.2596,221.36,221.33,5.0420716]
[1734321598192,2.2596,221.36,221.32,6.16373072]
[1734321598386,2.2596,221.36,221.33,5.04297854]
[1734321598590,2.2596,221.35,221.32,6.16373072]
[1734321598795,2.2596,221.35,221.33,5.04297854]
[1734321598991,2.2596,221.35,221.31,2.26]
[1734321599196,2.2596,221.35,221.32,5.04311083]
[1734321599395,2.2596,221.35,221.33,5.04311083]
[1734321599599,2.2596,221.35,221.31,2.26]
[1734321600490,2.2596,221.35,221.3,8.42383072]
[1734321602294,2.26,221.37,221.3,6.16373072]
[1734321602595,6.16373072,221.36,221.24,5.34687073]
[1734321602799,6.16373072,221.36,221.28,6.16373072]
[1734321603298,2.26,221.32,221.26,2.2604]
[1734321603500,2.26,221.32,221.28,6.16373072]
[1734321603892,2.26,221.32,221.27,2.2604]
[1734321604092,2.26,221.32,221.29,6.16373072]
[1734321605298,2.26,221.37,221.29,6.16373072]
[1734321605599,2.26,221.36,221.31,6.16373072]
[1734321605799,2.26,221.38,221.31,6.16373072]
[1734321605996,2.2596,221.35,221.31,6.16373072]
[1734321606902,2.2597,221.34,221.29,2.2602]
[1734321607099,2.2597,221.34,221.3,6.16373072]
[1734321607704,2.2596,221.36,221.3,8.42373072]
[1734321608196,2.2596,221.36,221.3,6.16373072]
[1734321608401,2.2596,221.36,221.24,5.34687073]
[1734321608402,2.2594,221.38,221.32,8.42363072]
[1734321608602,2.2594,221.38,221.32,6.16373072]
[1734321609102,8.42373072,221.41,221.32,6.16373072]
[1734321609296,2.2594,221.37,221.32,6.16373072]
[1734321610703,2.2595,221.36,221.32,6.16373072]
[1734321611004,6.16373072,221.37,221.3,3.1281]
[1734321611600,2.2596,221.35,221.3,3.1281]
[1734321612803,2.2596,221.35,221.31,6.16373072]
[1734321613507,2.2596,221.35,221.31,8.42373072]
[1734321614203,2.2594,221.38,221.31,6.16373072]
[1734321614403,2.2594,221.38,221.33,6.16373072]
[1734321614801,2.2595,221.36,221.31,8.42373072]
[1734321615006,6.16373072,221.39,221.31,6.16373072]
[1734321616007,6.16373072,221.37,221.3,3.1281]
[1734321616203,6.16373072,221.37,221.3,1.5659]
[1734321616505,6.16373072,221.37,221.29,6.16373072]
[1734321616907,2.2599,221.32,221.27,2.2603]
[1734321617102,8.42373072,221.35,221.26,8.42373072]
[1734321617307,2.2601,221.31,221.26,8.42373072]
[1734321617506,2.2601,221.31,221.26,6.16373072]
[1734321618109,6.16373072,221.31,221.25,1.5029]
[1734321618407,6.16373072,221.31,221.24,5.34687073]
[1734321618604,2.2605,221.26,221.24,5.34687073]
[1734321618809,6.16373072,221.31,221.24,5.34687073]
[1734321619009,6.16373072,221.31,221.24,11.51060145]
[1734321619311,2.2604,221.28,221.24,11.51060145]
[1734321619506,2.26,221.3,221.26,6.16373072]
[1734321619811,2.26,221.3,221.27,2.2604]
[1734321620309,2.26,221.3,221.26,6.16373072]
[1734321621012,2.26,221.31,221.26,6.16373072]
[1734321622209,2.2599,221.33,221.28,6.16373072]
[1734321622416,2.2599,221.33,221.3,6.16373072]
[1734321622713,2.2597,221.34,221.3,6.16373072]
[1734321623106,2.26,221.36,221.3,6.16373072]
[1734321623314,2.2597,221.35,221.32,6.16373072]
[1734321623610,2.26,221.36,221.32,6.16373072]
[1734321624816,2.26,221.36,221.3,6.16373072]
[1734321625016,6.16373072,221.37,221.3,6.16373072]
[1734321625209,8.42373072,221.37,221.26,2.26]
[1734321625514,6.16373072,221.35,221.27,6.16373072]
[1734321626114,6.16373072,221.33,221.25,10.59683072]
[1734321626411,6.16373072,221.31,221.24,7.60687073]
[1734321626611,2.26,221.31,221.25,6.16373072]
[1734321626916,2.26,221.31,221.27,6.16373072]
[1734321627312,2.26,221.31,221.24,5.34687073]
[1734321627619,6.16373072,221.3,221.22,6.16373072]
[1734321629125,6.16373072,221.3,221.22,11.55794242]
[1734321629509,2.2603,221.29,221.23,2.2608]
[1734321629718,6.16373072,221.3,221.23,2.2608]
[1734321630619,2.2604,221.28,221.24,6.16373072]
[1734321631223,2.2605,221.29,221.24,6.16373072]
[1734321632819,2.2605,221.29,221.24,8.42463072]
[1734321633019,1.5724,221.42,221.27,6.16373072]
[1734321633219,6.16373072,221.36,221.29,6.16373072]
[1734321633412,6.16373072,221.36,221.31,6.16373072]
[1734321633413,2.26,221.36,221.31,6.16373072]
[1734321634020,2.26,221.36,221.32,2.2601]
[1734321634217,4.5195,221.39,221.33,6.16373072]
[1734321634621,4.5195,221.39,221.33,8.42373072]
[1734321634823,2.26,221.39,221.33,8.42373072]
[1734321635117,2.26,221.39,221.33,6.16373072]
[1734321635328,2.26,221.39,221.34,2.2599]
[1734321636422,4.5195,221.39,221.33,6.16373072]
[1734321637524,4.5195,221.39,221.34,2.2599]
[1734321637825,2.2597,221.37,221.33,6.16373072]
[1734321638523,2.2597,221.37,221.32,2.2601]
[1734321639021,8.42373072,221.39,221.31,6.16373072]
[1734321639224,6.16373072,221.35,221.27,6.16373072]
[1734321639625,2.2604,221.3,221.25,2.2609]
[1734321639826,2.2604,221.3,221.25,8.42463072]
[1734321640030,2.26,221.32,221.25,8.42463072]